[Event "Krakow Championship-C 2022"]
[Site "Krakow"]
[Date "2022.06.29"]
[Round "6.3"]
[White "Jaromin, Maciej"]
[Black "Pawlak, Emilia"]
[Result "1-0"]
[ECO "A57"]
[WhiteElo "1479"]
[BlackElo "1477"]
[Annotator "NA RC"]
[PlyCount "101"]
[EventDate "2022.06.25"]
[EventType "swiss"]
[EventCountry "POL"]
[SourceTitle "playchess.com"]
[Source "ChessBase"]
[SourceQuality "1"]
[TimeControl "5400+30"]

1. d4 {[%emt 0:02:09]} Nf6 {[%emt 0:00:06]} 2. c4 {[%emt 0:00:05]} c5 {[%emt 0:00:20]} 3. d5 {[%emt 0:00:05]} b5 {[%emt 0:00:04]} 4. cxb5 {[%emt 0:00:06]} a6 {[%emt 0:00:05]} 5. e3 {[%emt 0:00:05]} g6 {[%emt 0:00:33]} 6. Nc3 {[%emt 0:00:11]} Bg7 {[%emt 0:00:28]} 7. Nf3 {[%emt 0:00:21]} O-O {[%emt 0:01:36]} 8. Be2 {[%emt 0:03:17]} d6 {[%emt 0:01:19]} 9. a4 {[%emt 0:00:16]} axb5 {[%emt 0:01:33]} 10. Bxb5 {[%emt 0:00:09]} Ba6 {[%emt 0:01:01]} 11. Bxa6 {[%emt 0:00:11]} Nxa6 {[%emt 0:00:10]} 12. O-O {[%emt 0:02:32]} Qb6 {[%emt 0:02:16]} 13. Rb1 {[%emt 0:02:06]} Rfb8 {[%emt 0:02:34]} 14. Re1 {[%emt 0:03:14]} Nd7 {[%emt 0:03:04]} 15. Bd2 {[%emt 0:00:37]} Nb4 {[%emt 0:02:49]} 16. Qe2 {[%emt 0:03:34]} Qb7 {[%emt 0:10:40]} 17. e4 {[%emt 0:00:17]} Nc2 {[%emt 0:01:05]} 18. Red1 {[%emt 0:09:12]} Nd4 {[%emt 0:02:33]} 19. Qd3 {[%emt 0:00:24]} Qc8 {[%emt 0:09:22]} 20. Nxd4 {[%emt 0:06:37]} cxd4 {[%emt 0:02:08]} 21. Nb5 {[%emt 0:00:11]} Rxa4 {[%emt 0:07:09]} 22. b3 {[%emt 0:01:08]} Nc5 {[%emt 0:02:44]} 23. Rbc1 {[%emt 0:16:25]} Raa8 {[%emt 0:03:24]} 24. Qc4 {[%emt 0:00:12]} Qd7 {[%emt 0:03:23]} 25. Nxd4 {[%emt 0:07:42]} Bxd4 {[%emt 0:02:10]} 26. b4 {[%emt 0:00:07]} Nxe4 {[%emt 0:03:52]} 27. Qxd4 {[%emt 0:00:14]} Nxd2 {[%emt 0:00:26]} 28. Qxd2 {[%emt 0:00:07]} Ra4 {[%emt 0:01:30]} 29. Rc4 {[%emt 0:04:19]} Qb7 {[%emt 0:09:17]} 30. Rb1 {[%emt 0:01:46]} Rba8 {[%emt 0:07:14]} 31. Qd4 {[%emt 0:03:20]} Qd7 {[%emt 0:04:21]} 32. h3 {[%emt 0:00:54]} Qf5 {[%emt 0:00:41]} 33. Re1 {[%emt 0:01:20]} R4a7 {[%emt 0:03:25]} 34. Rec1 {[%emt 0:01:30]} Qd7 {[%emt 0:00:46]} 35. Rc6 {[%emt 0:04:27]} f6 {[%emt 0:02:02]} 36. h4 {[%emt 0:03:19]} Rb7 {[%emt 0:01:06]} 37. Rb6 {[%emt 0:05:44]} Rba7 {[%emt 0:02:57]} 38. b5 {[%emt 0:01:27]} Qf5 {[%emt 0:01:12]} 39. Rbc6 {[%emt 0:02:46]} Ra4 {[%emt 0:01:11]} 40. R6c4 {[%emt 0:02:08]} Rxc4 {[%emt 0:00:43]} 41. Qxc4 {[%emt 0:00:11]} Qe5 {[%emt 0:00:35]} 42. b6 {[%emt 0:01:10]} Qb2 {[%emt 0:00:48]} 43. Qc7 {[%emt 0:02:04]} Ra1 {[%emt 0:00:27]} 44. Rxa1 {[%emt 0:01:13]} Qxa1+ {[%emt 0:00:05]} 45. Kh2 {[%emt 0:00:05]} Qd4 {[%emt 0:03:28]} 46. Qc8+ {[%emt 0:02:30]} Kg7 {[%emt 0:00:07]} 47. b7 {[%emt 0:00:59]} Qxh4+ {[%emt 0:00:12]} 48. Kg1 {[%emt 0:02:29]} Qd4 {[%emt 0:00:08]} 49. b8=Q {[%emt 0:00:12]} Qa1+ {[%emt 0:00:46]} 50. Kh2 {[%emt 0:00:11]} Qe5+ {[%emt 0:00:04]} 51. g3 {[%emt 0:00:20]} 1-0

[Event "Krakow Championship-C 2022"]
[Site "Krakow"]
[Date "2022.06.29"]
[Round "6.4"]
[White "Olszewski, Antoni"]
[Black "Diachek, Andriy"]
[Result "0-1"]
[ECO "B53"]
[WhiteElo "1532"]
[BlackElo "1451"]
[Annotator "NA RC"]
[PlyCount "117"]
[EventDate "2022.06.25"]
[EventType "swiss"]
[EventCountry "POL"]
[SourceTitle "playchess.com"]
[Source "ChessBase"]
[SourceQuality "1"]
[TimeControl "5400+30"]

1. e4 {[%emt 0:00:10]} c5 {[%emt 0:00:06]} 2. Nf3 {[%emt 0:00:24]} d6 {[%emt 0:00:07]} 3. d4 {[%emt 0:00:36]} cxd4 {[%emt 0:00:06]} 4. Qxd4 {[%emt 0:00:12]} Nc6 {[%emt 0:00:06]} 5. Bb5 {[%emt 0:00:27]} Bd7 {[%emt 0:00:10]} 6. Qd3 {[%emt 0:00:34]} Nf6 {[%emt 0:00:08]} 7. c4 {[%emt 0:00:55]} Ne5 {[%emt 0:00:07]} 8. Bxd7+ {[%emt 0:19:00]} Qxd7 {[%emt 0:00:38]} 9. Nxe5 {[%emt 0:00:31]} dxe5 {[%emt 0:00:10]} 10. Qxd7+ {[%emt 0:00:20]} Nxd7 {[%emt 0:00:17]} 11. Nc3 {[%emt 0:01:07]} e6 {[%emt 0:00:51]} 12. Be3 {[%emt 0:01:13]} a6 {[%emt 0:00:10]} 13. Rc1 {[%emt 0:02:38]} Rc8 {[%emt 0:04:04]} 14. Na4 {[%emt 0:08:38]} b5 {[%emt 0:05:20]} 15. cxb5 {[%emt 0:06:54]} Rxc1+ {[%emt 0:00:19]} 16. Bxc1 {[%emt 0:00:06]} axb5 {[%emt 0:00:07]} 17. Nc3 {[%emt 0:00:46]} b4 {[%emt 0:01:06]} 18. Nd1 {[%emt 0:03:55]} Bc5 {[%emt 0:02:00]} 19. Be3 {[%emt 0:01:22]} Bd4 {[%emt 0:01:01]} 20. Bd2 {[%emt 0:04:34]} Nc5 {[%emt 0:01:29]} 21. f3 {[%emt 0:03:33]} Kd7 {[%emt 0:01:36]} 22. Ke2 {[%emt 0:01:16]} Rb8 {[%emt 0:02:06]} 23. Ne3 {[%emt 0:08:16]} Ra8 {[%emt 0:07:41]} 24. Bxb4 {[%emt 0:04:33]} Rxa2 {[%emt 0:00:15]} 25. Nc4 {[%emt 0:05:26]} Na4 {[%emt 0:20:55]} 26. Rb1 {[%emt 0:07:11]} Nxb2 {[%emt 0:00:52]} 27. Nxb2 {[%emt 0:00:09]} Bxb2 {[%emt 0:00:12]} 28. Kd3 {[%emt 0:03:43]} Bd4 {[%emt 0:04:40]} 29. Bd2 {[%emt 0:00:47]} Ra7 {[%emt 0:00:43]} 30. Rb8 {[%emt 0:03:17]} Ke7 {[%emt 0:04:29]} 31. Rb3 {[%emt 0:02:40]} Ra1 {[%emt 0:04:33]} 32. Bb4+ {[%emt 0:03:28]} Kf6 {[%emt 0:01:01]} 33. Ra3 {[%emt 0:03:55]} Rd1+ {[%emt 0:05:01]} 34. Kc4 {[%emt 0:01:08]} Rc1+ {[%emt 0:00:38]} 35. Kd3 {[%emt 0:00:28]} Rb1 {[%emt 0:00:47]} 36. Ba5 {[%emt 0:00:55]} h5 {[%emt 0:03:51]} 37. Ra2 {[%emt 0:01:04]} Kg6 {[%emt 0:04:36]} 38. Bd2 {[%emt 0:01:11]} h4 {[%emt 0:01:19]} 39. h3 {[%emt 0:00:36]} Rd1 {[%emt 0:04:01]} 40. Rc2 {[%emt 0:01:18]} Bb6 {[%emt 0:00:55]} 41. Rb2 {[%emt 0:00:36]} Ba5 {[%emt 0:00:36]} 42. Ra2 {[%emt 0:00:45]} Rxd2+ 43. Rxd2 Bxd2 {[%emt 0:00:47]} 44. Kxd2 {[%emt 0:00:33]} Kg5 {[%emt 0:00:10]} 45. Ke3 {[%emt 0:00:38]} f5 {[%emt 0:00:07]} 46. exf5 {[%emt 0:00:46]} exf5 {[%emt 0:00:05]} 47. f4+ {[%emt 0:00:32]} exf4+ {[%emt 0:00:13]} 48. Kf3 {[%emt 0:00:15]} g6 {[%emt 0:00:05]} 49. g4 {[%emt 0:00:27]} fxg3 {[%emt 0:00:15]} 50. Kg2 {[%emt 0:00:05]} Kf4 {[%emt 0:00:14]} 51. Kh1 {[%emt 0:00:24]} g5 {[%emt 0:00:09]} 52. Kg1 {[%emt 0:00:11]} g4 {[%emt 0:00:07]} 53. Kh1 {[%emt 0:00:06]} gxh3 {[%emt 0:00:08]} 54. Kg1 {[%emt 0:00:05]} Ke3 {[%emt 0:00:10]} 55. Kh1 {[%emt 0:00:09]} f4 {[%emt 0:00:10]} 56. Kg1 {[%emt 0:00:12]} f3 {[%emt 0:00:09]} 57. Kh1 {[%emt 0:00:08]} g2+ {[%emt 0:00:23]} 58. Kh2 {[%emt 0:00:23]} f2 {[%emt 0:00:17]} 59. Kxh3 {[%emt 0:00:20]} 0-1

[Event "Krakow Championship-C 2022"]
[Site "Krakow"]
[Date "2022.06.29"]
[Round "6.5"]
[White "Herka, Jakub"]
[Black "Cwiek, Stefan"]
[Result "1-0"]
[ECO "C05"]
[WhiteElo "1494"]
[BlackElo "1280"]
[Annotator "NA RC"]
[PlyCount "121"]
[EventDate "2022.06.25"]
[EventType "swiss"]
[EventCountry "POL"]
[SourceTitle "playchess.com"]
[Source "ChessBase"]
[SourceQuality "1"]
[TimeControl "5400+30"]

1. d4 {[%emt 0:00:03]} e6 {[%emt 0:00:05]} 2. e4 {[%emt 0:01:32]} d5 {[%emt 0:00:17]} 3. Nd2 {[%emt 0:00:10]} Nf6 {[%emt 0:00:14]} 4. e5 {[%emt 0:05:51]} Nfd7 {[%emt 0:00:06]} 5. Bd3 {[%emt 0:02:37]} c5 {[%emt 0:00:12]} 6. c3 {[%emt 0:00:15]} Nc6 {[%emt 0:00:11]} 7. Ne2 {[%emt 0:00:42]} Qb6 {[%emt 0:00:31]} 8. Nf3 {[%emt 0:02:29]} cxd4 {[%emt 0:00:19]} 9. cxd4 {[%emt 0:00:07]} f6 {[%emt 0:00:36]} 10. exf6 {[%emt 0:01:13]} Nxf6 {[%emt 0:00:11]} 11. O-O {[%emt 0:02:02]} Bd6 {[%emt 0:01:08]} 12. Bf4 {[%emt 0:23:34]} Bxf4 {[%emt 0:03:46]} 13. Nxf4 {[%emt 0:00:01]} O-O {[%emt 0:02:43]} 14. Qd2 {[%emt 0:09:13]} Bd7 {[%emt 0:04:11]} 15. Rfe1 {[%emt 0:02:14]} Rae8 {[%emt 0:00:19]} 16. Rad1 {[%emt 0:02:27]} Qc7 {[%emt 0:07:51]} 17. g3 {[%emt 0:04:39]} e5 {[%emt 0:02:41]} 18. dxe5 {[%emt 0:00:32]} Nxe5 {[%emt 0:00:18]} 19. Nxe5 {[%emt 0:00:29]} Rxe5 {[%emt 0:00:10]} 20. Rxe5 {[%emt 0:00:38]} Qxe5 {[%emt 0:00:22]} 21. Bf1 {[%emt 0:01:30]} Bc6 {[%emt 0:03:11]} 22. Bg2 {[%emt 0:01:33]} Rd8 {[%emt 0:04:30]} 23. Qd4 {[%emt 0:03:25]} Qxd4 {[%emt 0:00:54]} 24. Rxd4 {[%emt 0:00:01]} Kf7 {[%emt 0:02:29]} 25. h4 {[%emt 0:02:11]} h6 {[%emt 0:01:45]} 26. Bf3 {[%emt 0:01:32]} g5 {[%emt 0:02:21]} 27. hxg5 {[%emt 0:00:25]} hxg5 {[%emt 0:00:09]} 28. Nd3 {[%emt 0:01:41]} Ke6 {[%emt 0:07:41]} 29. Nb4 {[%emt 0:05:52]} Ke5 {[%emt 0:04:06]} 30. Rd1 {[%emt 0:01:41]} a5 {[%emt 0:09:18]} 31. Re1+ {[%emt 0:04:51]} Kf5 {[%emt 0:01:33]} 32. Nc2 {[%emt 0:01:08]} d4 {[%emt 0:02:56]} 33. Bxc6 {[%emt 0:02:26]} bxc6 {[%emt 0:00:12]} 34. Re7 {[%emt 0:01:10]} Rd5 {[%emt 0:17:26]} 35. Rc7 {[%emt 0:00:47]} c5 {[%emt 0:00:20]} 36. Ra7 {[%emt 0:01:01]} Ke4 {[%emt 0:02:58]} 37. Rxa5 {[%emt 0:00:06]} d3 {[%emt 0:03:45]} 38. Ne3 {[%emt 0:00:10]} d2 {[%emt 0:02:04]} 39. Kg2 {[%emt 0:01:48]} Ng4 {[%emt 0:06:53]} 40. Nxd5 {[%emt 0:02:57]} Kxd5 {[%emt 0:05:21]} 41. Ra8 {[%emt 0:00:02]} Kc4 {[%emt 0:03:48]} 42. Rd8 {[%emt 0:00:08]} Ne5 {[%emt 0:00:15]} 43. Rxd2 {[%emt 0:00:11]} Nd3 {[%emt 0:00:07]} 44. Kh3 {[%emt 0:02:22]} Ne5 {[%emt 0:00:14]} 45. f4 {[%emt 0:00:41]} g4+ {[%emt 0:00:07]} 46. Kg2 {[%emt 0:00:13]} Nf3 {[%emt 0:00:15]} 47. Rf2 {[%emt 0:02:29]} Ne1+ {[%emt 0:00:07]} 48. Kf1 {[%emt 0:00:53]} Nd3 {[%emt 0:00:07]} 49. Rc2+ {[%emt 0:01:20]} Kd4 {[%emt 0:00:12]} 50. Rd2 {[%emt 0:00:42]} c4 {[%emt 0:00:15]} 51. Rxd3+ {[%emt 0:00:33]} cxd3 {[%emt 0:00:23]} 52. Ke1 {[%emt 0:00:09]} Ke3 {[%emt 0:00:14]} 53. f5 {[%emt 0:00:12]} Kf3 {[%emt 0:00:06]} 54. f6 {[%emt 0:00:06]} Kxg3 {[%emt 0:00:05]} 55. f7 {[%emt 0:00:03]} Kh2 {[%emt 0:00:16]} 56. f8=Q {[%emt 0:00:08]} g3 {[%emt 0:00:06]} 57. Qh6+ {[%emt 0:00:16]} Kg2 {[%emt 0:00:08]} 58. Kd2 {[%emt 0:00:19]} Kg1 {[%emt 0:00:07]} 59. Kxd3 {[%emt 0:00:28]} g2 {[%emt 0:00:07]} 60. a4 {[%emt 0:00:35]} Kf1 {[%emt 0:00:23]} 61. Ke4 1-0

[Event "Krakow Championship-C 2022"]
[Site "Krakow"]
[Date "2022.06.29"]
[Round "6.6"]
[White "Wegrzyn, Bartosz"]
[Black "Kieca, Aleksandra"]
[Result "1-0"]
[ECO "D30"]
[WhiteElo "1286"]
[BlackElo "1524"]
[Annotator "NA RC"]
[PlyCount "55"]
[EventDate "2022.06.25"]
[EventType "swiss"]
[EventCountry "POL"]
[SourceTitle "playchess.com"]
[Source "ChessBase"]
[SourceQuality "1"]
[TimeControl "5400+30"]

1. d4 {[%emt 0:00:03]} d5 {[%emt 0:02:11]} 2. c4 {[%emt 0:00:10]} e6 {[%emt 0:00:24]} 3. Nf3 {[%emt 0:00:09]} a6 {[%emt 0:00:14]} 4. e3 {[%emt 0:02:56]} Nf6 {[%emt 0:00:20]} 5. Nbd2 {[%emt 0:02:53]} Be7 {[%emt 0:01:48]} 6. Bd3 {[%emt 0:03:59]} dxc4 {[%emt 0:01:15]} 7. Nxc4 {[%emt 0:00:16]} b5 {[%emt 0:00:07]} 8. Nce5 {[%emt 0:00:21]} Bb7 {[%emt 0:00:36]} 9. a4 {[%emt 0:04:44]} b4 {[%emt 0:02:49]} 10. Qc2 {[%emt 0:07:42]} h6 {[%emt 0:20:35]} 11. Bd2 {[%emt 0:06:03]} Nbd7 {[%emt 0:03:32]} 12. Nc6 {[%emt 0:03:33]} Bxc6 {[%emt 0:00:09]} 13. Qxc6 {[%emt 0:00:06]} a5 {[%emt 0:00:40]} 14. Rc1 {[%emt 0:03:29]} Ra7 {[%emt 0:01:41]} 15. e4 {[%emt 0:08:00]} O-O {[%emt 0:00:45]} 16. O-O {[%emt 0:00:26]} Nb8 {[%emt 0:10:51]} 17. Qc2 {[%emt 0:01:10]} c6 {[%emt 0:02:02]} 18. Bf4 {[%emt 0:02:53]} Nfd7 {[%emt 0:05:24]} 19. Rfd1 {[%emt 0:07:08]} Qb6 {[%emt 0:10:39]} 20. d5 {[%emt 0:06:34]} exd5 {[%emt 0:00:46]} 21. exd5 {[%emt 0:00:32]} c5 {[%emt 0:02:15]} 22. d6 {[%emt 0:09:02]} Bf6 {[%emt 0:01:26]} 23. Be3 {[%emt 0:01:39]} Rc8 {[%emt 0:02:20]} 24. Bb5 {[%emt 0:01:49]} Qb7 {[%emt 0:10:45]} 25. b3 {[%emt 0:07:06]} Ra6 {[%emt 0:11:32]} 26. Bxa6 {[%emt 0:02:30]} Nxa6 {[%emt 0:00:05]} 27. Qf5 {[%emt 0:01:46]} Qb8 {[%emt 0:03:44]} 28. Qxd7 {[%emt 0:02:58]} 1-0

[Event "Krakow Championship-C 2022"]
[Site "Krakow"]
[Date "2022.06.29"]
[Round "6.8"]
[White "Jokel, Marcin"]
[Black "Lesniak, Wojciech"]
[Result "1-0"]
[ECO "A40"]
[WhiteElo "1413"]
[BlackElo "1368"]
[Annotator "NA RC"]
[PlyCount "92"]
[EventDate "2022.06.25"]
[EventType "swiss"]
[EventCountry "POL"]
[SourceTitle "playchess.com"]
[Source "ChessBase"]
[SourceQuality "1"]
[TimeControl "5400+30"]

1. d4 {[%emt 0:00:03]} e6 {[%emt 0:00:15]} 2. Nf3 {[%emt 0:00:10]} Nf6 {[%emt 0:00:08]} 3. g3 {[%emt 0:00:15]} d5 {[%emt 0:08:06]} 4. Bg2 {[%emt 0:00:07]} c6 {[%emt 0:02:24]} 5. O-O {[%emt 0:00:41]} Be7 {[%emt 0:00:44]} 6. Nbd2 {[%emt 0:00:54]} O-O {[%emt 0:01:11]} 7. c4 {[%emt 0:00:35]} b6 {[%emt 0:06:31]} 8. Qc2 {[%emt 0:01:31]} Nbd7 {[%emt 0:03:42]} 9. e4 {[%emt 0:06:36]} dxe4 {[%emt 0:08:28]} 10. Nxe4 {[%emt 0:00:29]} Bb7 {[%emt 0:00:55]} 11. Nc3 {[%emt 0:04:08]} c5 {[%emt 0:05:18]} 12. dxc5 {[%emt 0:02:09]} Nxc5 {[%emt 0:02:00]} 13. Rd1 {[%emt 0:01:51]} Qc8 {[%emt 0:01:14]} 14. Bg5 {[%emt 0:15:53]} h6 {[%emt 0:06:04]} 15. Bxf6 {[%emt 0:01:19]} Bxf6 {[%emt 0:00:42]} 16. b4 {[%emt 0:15:17]} Nd7 {[%emt 0:10:23]} 17. Rac1 {[%emt 0:03:44]} a6 {[%emt 0:03:15]} 18. Ne4 {[%emt 0:02:54]} Bxe4 {[%emt 0:05:06]} 19. Qxe4 {[%emt 0:00:41]} Qc7 {[%emt 0:01:17]} 20. Nd4 {[%emt 0:02:45]} Bxd4 {[%emt 0:06:36]} 21. Rxd4 {[%emt 0:02:42]} Rab8 {[%emt 0:02:14]} 22. Qc6 {[%emt 0:02:27]} Qxc6 {[%emt 0:01:28]} 23. Bxc6 {[%emt 0:00:06]} Ne5 {[%emt 0:00:27]} 24. Bg2 {[%emt 0:01:28]} Rfc8 {[%emt 0:01:50]} 25. f4 {[%emt 0:03:57]} Nc6 {[%emt 0:01:26]} 26. Bxc6 {[%emt 0:00:23]} Rxc6 {[%emt 0:00:05]} 27. Kf2 {[%emt 0:02:45]} Kf8 {[%emt 0:01:19]} 28. Ke3 {[%emt 0:02:12]} Ke7 {[%emt 0:00:34]} 29. Kd2 {[%emt 0:03:13]} Rd8 {[%emt 0:01:26]} 30. Rxd8 {[%emt 0:00:41]} Kxd8 {[%emt 0:00:04]} 31. a4 {[%emt 0:02:13]} b5 {[%emt 0:04:18]} 32. cxb5 {[%emt 0:01:39]} Rd6+ {[%emt 0:02:17]} 33. Ke3 {[%emt 0:01:40]} axb5 {[%emt 0:00:30]} 34. a5 {[%emt 0:00:16]} h5 {[%emt 0:01:19]} 35. Rc5 {[%emt 0:00:55]} Rd1 {[%emt 0:01:34]} 36. Rxb5 {[%emt 0:00:48]} Kc7 {[%emt 0:00:58]} 37. Rc5+ {[%emt 0:02:31]} Kb7 {[%emt 0:01:21]} 38. Rxh5 {[%emt 0:02:44]} Ka6 {[%emt 0:01:13]} 39. Rh7 {[%emt 0:02:26]} Rb1 {[%emt 0:03:47]} 40. Rxg7 {[%emt 0:00:24]} Rxb4 {[%emt 0:00:05]} 41. Rxf7 {[%emt 0:01:12]} Kxa5 {[%emt 0:00:12]} 42. h4 {[%emt 0:00:28]} Kb6 {[%emt 0:00:57]} 43. Kf3 {[%emt 0:01:31]} Kc6 {[%emt 0:00:49]} 44. h5 {[%emt 0:00:30]} Rb1 {[%emt 0:01:06]} 45. Kg4 {[%emt 0:00:22]} Rb4 {[%emt 0:00:43]} 46. Kg5 {[%emt 0:00:21]} Kd5 1-0

[Event "Krakow Championship-C 2022"]
[Site "Krakow"]
[Date "2022.06.30"]
[Round "7.1"]
[White "Piddubna, Bozhena"]
[Black "Andriienko, Artom"]
[Result "0-1"]
[ECO "E67"]
[WhiteElo "1534"]
[BlackElo "1588"]
[Annotator "NA RC"]
[PlyCount "116"]
[EventDate "2022.06.25"]
[EventType "swiss"]
[EventCountry "POL"]
[SourceTitle "playchess.com"]
[Source "ChessBase"]
[SourceQuality "1"]
[TimeControl "5400+30"]

1. d4 {[%emt 0:04:14]} Nf6 {[%emt 0:00:17]} 2. c4 {[%emt 0:00:28]} g6 {[%emt 0:02:08]} 3. Nf3 {[%emt 0:01:03]} Bg7 {[%emt 0:00:13]} 4. g3 {[%emt 0:01:01]} O-O {[%emt 0:01:54]} 5. Bg2 {[%emt 0:00:11]} d6 {[%emt 0:02:41]} 6. Nc3 {[%emt 0:01:02]} Nbd7 {[%emt 0:01:36]} 7. O-O {[%emt 0:00:26]} c5 {[%emt 0:03:33]} 8. b3 {[%emt 0:04:51]} Rb8 {[%emt 0:10:30]} 9. Bb2 {[%emt 0:02:17]} Ne8 {[%emt 0:07:38]} 10. Qd2 {[%emt 0:04:08]} Nc7 {[%emt 0:03:41]} 11. Rfd1 {[%emt 0:06:44]} a6 {[%emt 0:04:33]} 12. Nd5 {[%emt 0:04:42]} b5 {[%emt 0:04:46]} 13. Nxc7 {[%emt 0:05:44]} Qxc7 {[%emt 0:00:05]} 14. cxb5 {[%emt 0:01:09]} axb5 {[%emt 0:02:54]} 15. dxc5 {[%emt 0:00:56]} Bxb2 {[%emt 0:05:57]} 16. Qxb2 {[%emt 0:00:34]} Nxc5 {[%emt 0:00:24]} 17. Nd4 {[%emt 0:05:23]} b4 {[%emt 0:01:12]} 18. Rac1 {[%emt 0:02:15]} Bb7 {[%emt 0:00:57]} 19. Bxb7 {[%emt 0:13:57]} Qxb7 {[%emt 0:00:46]} 20. Rc4 {[%emt 0:01:09]} Rfc8 {[%emt 0:18:02]} 21. Rdc1 {[%emt 0:02:35]} Qa6 {[%emt 0:08:40]} 22. Qd2 {[%emt 0:07:02]} Ne4 {[%emt 0:04:45]} 23. Rxc8+ {[%emt 0:01:38]} Rxc8 {[%emt 0:00:09]} 24. Rxc8+ {[%emt 0:00:04]} Qxc8 {[%emt 0:00:05]} 25. Qc2 {[%emt 0:00:12]} Nc3 {[%emt 0:01:34]} 26. Nb5 {[%emt 0:00:27]} Qc5 {[%emt 0:00:35]} 27. Nxc3 {[%emt 0:04:43]} bxc3 {[%emt 0:00:10]} 28. a3 {[%emt 0:01:10]} d5 {[%emt 0:01:14]} 29. b4 {[%emt 0:01:49]} Qc4 {[%emt 0:01:36]} 30. Kf1 {[%emt 0:06:27]} d4 {[%emt 0:01:02]} 31. f3 {[%emt 0:02:36]} e5 {[%emt 0:00:56]} 32. g4 {[%emt 0:00:46]} Kg7 {[%emt 0:01:25]} 33. Ke1 {[%emt 0:02:01]} Kf6 {[%emt 0:00:49]} 34. h4 {[%emt 0:02:07]} h6 {[%emt 0:02:15]} 35. Kd1 {[%emt 0:01:00]} Ke6 {[%emt 0:00:24]} 36. Qb1 {[%emt 0:04:14]} Kd6 {[%emt 0:01:44]} 37. a4 {[%emt 0:01:41]} Kc7 {[%emt 0:01:01]} 38. a5 {[%emt 0:01:30]} Kb8 {[%emt 0:02:25]} 39. Qe4 {[%emt 0:04:29]} Qb3+ {[%emt 0:00:48]} 40. Ke1 {[%emt 0:00:22]} Qxb4 {[%emt 0:01:20]} 41. Qxe5+ {[%emt 0:00:07]} Ka7 {[%emt 0:00:07]} 42. Qc7+ {[%emt 0:00:22]} Ka6 {[%emt 0:00:10]} 43. Kf2 {[%emt 0:00:50]} Qb5 {[%emt 0:02:44]} 44. Qc8+ {[%emt 0:01:14]} Kxa5 {[%emt 0:00:13]} 45. Qd8+ {[%emt 0:00:36]} Qb6 {[%emt 0:00:04]} 46. Qa8+ {[%emt 0:00:34]} Kb4 {[%emt 0:00:14]} 47. Ke1 {[%emt 0:00:22]} Kb3 {[%emt 0:00:43]} 48. Qa1 {[%emt 0:00:39]} c2 {[%emt 0:00:50]} 49. Qc1 {[%emt 0:00:21]} Qb4+ {[%emt 0:00:05]} 50. Kf2 {[%emt 0:00:39]} Qa3 {[%emt 0:00:07]} 51. Qf4 {[%emt 0:00:33]} c1=Q {[%emt 0:00:10]} 52. Qxf7+ {[%emt 0:00:05]} Qc4 {[%emt 0:00:09]} 53. Qxg6 {[%emt 0:00:11]} d3 {[%emt 0:00:20]} 54. Qb6+ {[%emt 0:00:32]} Ka2 {[%emt 0:00:12]} 55. Qxh6 {[%emt 0:00:26]} Qac5+ {[%emt 0:00:18]} 56. Kg2 {[%emt 0:00:13]} dxe2 {[%emt 0:00:18]} 57. Qd2+ {[%emt 0:00:22]} Qc2 {[%emt 0:00:05]} 58. Qe1 {[%emt 0:00:12]} Q5c3 {[%emt 0:00:06]} 0-1

[Event "Krakow Championship-C 2022"]
[Site "Krakow"]
[Date "2022.06.30"]
[Round "7.2"]
[White "Diachek, Andriy"]
[Black "Jaromin, Maciej"]
[Result "0-1"]
[ECO "B30"]
[WhiteElo "1451"]
[BlackElo "1479"]
[Annotator "NA RC"]
[PlyCount "148"]
[EventDate "2022.06.25"]
[EventType "swiss"]
[EventCountry "POL"]
[SourceTitle "playchess.com"]
[Source "ChessBase"]
[SourceQuality "1"]
[TimeControl "5400+30"]

1. e4 {[%emt 0:00:03]} c5 {[%emt 0:00:05]} 2. Nf3 {[%emt 0:00:08]} Nc6 {[%emt 0:00:06]} 3. Bb5 {[%emt 0:00:05]} e6 {[%emt 0:00:06]} 4. O-O {[%emt 0:00:08]} Nge7 {[%emt 0:00:04]} 5. Re1 {[%emt 0:00:05]} Nd4 {[%emt 0:00:16]} 6. Nxd4 {[%emt 0:00:08]} cxd4 {[%emt 0:00:06]} 7. d3 {[%emt 0:00:15]} a6 {[%emt 0:00:41]} 8. Ba4 {[%emt 0:00:09]} b5 {[%emt 0:00:06]} 9. Bb3 {[%emt 0:00:05]} Ng6 {[%emt 0:00:09]} 10. f4 {[%emt 0:01:25]} Be7 {[%emt 0:03:30]} 11. f5 {[%emt 0:04:59]} Ne5 {[%emt 0:00:34]} 12. Bf4 {[%emt 0:00:33]} Bf6 {[%emt 0:05:28]} 13. Nd2 {[%emt 0:03:22]} O-O {[%emt 0:00:17]} 14. Nf3 {[%emt 0:01:56]} d6 {[%emt 0:08:01]} 15. fxe6 {[%emt 0:02:57]} Bxe6 {[%emt 0:00:08]} 16. Bxe5 {[%emt 0:01:56]} Bxe5 {[%emt 0:01:20]} 17. Bxe6 {[%emt 0:05:06]} fxe6 {[%emt 0:00:08]} 18. Nxe5 {[%emt 0:02:28]} dxe5 {[%emt 0:00:05]} 19. Qd2 {[%emt 0:04:38]} Qc7 {[%emt 0:03:01]} 20. Rac1 {[%emt 0:01:28]} Rac8 {[%emt 0:07:56]} 21. c4 {[%emt 0:05:01]} dxc3 {[%emt 0:02:33]} 22. Rxc3 {[%emt 0:00:15]} Qa7+ {[%emt 0:09:03]} 23. Qe3 {[%emt 0:01:07]} Qxe3+ {[%emt 0:00:30]} 24. Rxe3 {[%emt 0:00:07]} Rxc3 {[%emt 0:00:07]} 25. bxc3 {[%emt 0:00:15]} Rc8 {[%emt 0:00:08]} 26. d4 {[%emt 0:01:32]} exd4 {[%emt 0:00:06]} 27. cxd4 {[%emt 0:00:00]} Rc1+ {[%emt 0:06:16]} 28. Kf2 {[%emt 0:06:58]} Rd1 29. Ra3 Rxd4 {[%emt 0:00:44]} 30. Rxa6 {[%emt 0:00:44]} Rxe4 {[%emt 0:00:26]} 31. Rb6 {[%emt 0:04:31]} Re5 {[%emt 0:00:11]} 32. g4 {[%emt 0:04:43]} Kf7 {[%emt 0:00:36]} 33. Kf3 {[%emt 0:02:39]} Kf6 {[%emt 0:00:28]} 34. h4 {[%emt 0:00:57]} h6 {[%emt 0:00:42]} 35. Rb7 {[%emt 0:03:51]} Rc5 36. Rb6 {[%emt 0:04:34]} Ke5 {[%emt 0:17:44]} 37. Ke3 {[%emt 0:12:37]} Kf6 {[%emt 0:13:37]} 38. Rb7 {[%emt 0:03:42]} Rc3+ {[%emt 0:01:40]} 39. Ke4 {[%emt 0:00:27]} Rc4+ 40. Kf3 b4 {[%emt 0:01:10]} 41. Rb5 {[%emt 0:13:02]} Rd4 {[%emt 0:01:10]} 42. Kg3 {[%emt 0:03:01]} Rd3+ {[%emt 0:02:00]} 43. Kf2 {[%emt 0:01:00]} Rd2+ {[%emt 0:05:47]} 44. Kf3 {[%emt 0:00:18]} Rd4 {[%emt 0:00:30]} 45. Kg3 {[%emt 0:01:32]} Rd3+ {[%emt 0:01:29]} 46. Kf2 {[%emt 0:00:14]} Rd2+ {[%emt 0:00:13]} 47. Kf3 {[%emt 0:00:16]} Rxa2 {[%emt 0:00:05]} 48. Rxb4 Ra3+ {[%emt 0:00:11]} 49. Kg2 {[%emt 0:05:57]} Rd3 {[%emt 0:00:08]} 50. Rb8 Ke5 {[%emt 0:00:44]} 51. Rg8 {[%emt 0:02:48]} Rd7 {[%emt 0:00:10]} 52. Kf3 {[%emt 0:00:22]} Kd4 {[%emt 0:00:16]} 53. Ke2 {[%emt 0:00:30]} Ke4 {[%emt 0:00:46]} 54. Rf8 {[%emt 0:00:11]} Ra7 {[%emt 0:00:34]} 55. Kf2 {[%emt 0:01:46]} e5 {[%emt 0:00:25]} 56. Rf5 {[%emt 0:00:55]} Ra6 {[%emt 0:00:48]} 57. Rh5 {[%emt 0:00:28]} Kf4 {[%emt 0:01:06]} 58. Rf5+ {[%emt 0:00:28]} Kxg4 59. Rxe5 {[%emt 0:00:09]} Ra2+ {[%emt 0:01:03]} 60. Kg1 {[%emt 0:00:39]} Kxh4 {[%emt 0:00:05]} 61. Re3 {[%emt 0:00:21]} g5 {[%emt 0:00:13]} 62. Rd3 {[%emt 0:00:09]} g4 {[%emt 0:00:10]} 63. Rd4 {[%emt 0:01:06]} h5 {[%emt 0:00:18]} 64. Rd3 {[%emt 0:00:26]} g3 {[%emt 0:00:58]} 65. Rd5 {[%emt 0:00:40]} Kg4 {[%emt 0:00:10]} 66. Rd4+ {[%emt 0:00:22]} Kh3 {[%emt 0:00:11]} 67. Rd1 {[%emt 0:00:09]} Re2 {[%emt 0:00:49]} 68. Rb1 {[%emt 0:00:32]} h4 {[%emt 0:00:10]} 69. Ra1 {[%emt 0:00:25]} Kg4 {[%emt 0:01:24]} 70. Ra4+ Kf3 71. Ra3+ {[%emt 0:00:44]} Re3 {[%emt 0:00:38]} 72. Ra1 h3 {[%emt 0:03:07]} 73. Rb1 {[%emt 0:00:41]} h2+ {[%emt 0:00:39]} 74. Kh1 {[%emt 0:00:24]} Kg4 {[%emt 0:04:01]} 0-1